Workbook

Sheet Cover

Sheet FP Sum
B2: APPROVED FY14-FY19 FISCAL PLAN
B4: Summary
C7: FY14 Amount ($ millions) | D7: Avg. Annual Growth Rate | E7: FY19 Amount ($ millions)
B8: Revenues | C8: ='Rev Data'!D25 -> 4193.7 | D8: ='Rev Data'!K25 -> 0.03172101519 | E8: ='Rev Data'!I25 -> 4902.4
B9: Non-Operating Expenses | C9: ='NonOp Data'!D10 -> 450.2 | D9: ='NonOp Data'!K10 -> 0.1010745771 | E9: ='NonOp Data'!I10 -> 728.6
B10: Resources Available for Agency Use | C10: =C8-C9 -> 3743.5 | D10: =((1+((E10-C10)/C10))^(1/5))-1 -> 0.02199967914 | E10: =E8-E9 -> 4173.8
B11: MCPS | C11: 2084.3
B12: Montgomery College | C12: 228.5
B13: MNCPPC | C13: 104.7
B14: County Government | C14: 1325.9
B15: Surplus / Deficit | C15: 0 | E15: 0
B31: UPDATE REQUIREMENTS
B32: Cells C11 - C14 (from fiscal plan summary)

Sheet Cty Res
B2: COUNTY RESOURCES FOR AGENCY USE
C6: FY14 Amount ($ millions) | D6: Avg. Annual Growth Rate | E6: FY19 Amount ($ millions)
B7: County Resources Available for Agency Use | C7: =SUM(C8:C11) -> 3026.4 | D7: =((1+((E7-C7)/C7))^(1/5))-1 -> 0.02695067572 | E7: ='Rev Data'!I25-'NonOp Data'!I10-'Rev Data'!I14 -> 3456.8
B8: MCPS | C8: ='FP Sum'!C11-'Rev Data'!D15 -> 1479.3
B9: Montgomery College | C9: ='FP Sum'!C12-'Rev Data'!D16 -> 196.8
B10: MNCPPC | C10: ='FP Sum'!C13 -> 104.7
B11: County Government | C11: ='FP Sum'!C14-'Rev Data'!I17 -> 1245.6
B32: UPDATE REQUIREMENTS
B33: None

Sheet Dashboard
C2: DASHBOARD
D4: 1. Revenue | N4: 2. Non-Operating Expenses
D5: Annual Growth Rate (FY14-FY19) | N5: Annual Growth Rate (FY14-FY19)
D22: 3. Local Agency Funding | N22: 4. County Government Budget
D23: Annual Growth Rates (FY14-FY19) | M23: Annual Growth Rates (FY14-FY19)
J40: =IF(L57>1.5,"Surplus"," ") ->  | L40: =IF(AND($L$57>-1.5,$L$57<1.5),"Balanced",$L$57) -> Balanced | N40: =IF($L$57<-1.5,"Deficit"," ") -> 
D57: UPDATE REQUIREMENTS | L57: ='Rev Var'!$M$12+'Rev Var State'!M11-'NonOp Var'!$L$14-'Agency Var'!$N$13 -> 7.247535905e-13
D58: Adjust x-axis scales, move arrows
L60: ='Rev Var'!$M$12 -> 0.07120784136
L61: ='Rev Var State'!M11 -> 0.001972692325
L62: ='NonOp Var'!$L$14 -> 0.004774541136
L63: ='Agency Var'!$N$13 -> 0.06840599254

Sheet Rev Assum
C3: 1. REVENUE ASSUMPTIONS
E5: Approved Fiscal Plan
D6: FY14 Amount ($ millions) | E6: Avg. Annual Growth Rate | F6: FY19 Amount ($ millions) | H6: Major Fiscal Plan Assumptions
C7: Property Tax | D7: ='Rev Data'!D6 -> 1504.9 | E7: ='Rev Data'!K6 -> 0.03095566385 | F7: ='Rev Data'!I6 -> 1752.7 | H7: • Retention of current tax rates • Property taxes at Charter limit (with income tax offset) • Annual average population growth of 0.9% • Annual average growth in assessable base of 3.9% • Annual average growth in per capita income of 4.2%
C8: Income Tax | D8: ='Rev Data'!D7 -> 1299.2 | E8: ='Rev Data'!K7 -> 0.0546764128 | F8: ='Rev Data'!I7 -> 1695.4
C9: Energy Tax | D9: ='Rev Data'!D10 -> 210.7 | E9: ='Rev Data'!K10 -> 0.01095795957 | F9: ='Rev Data'!I10 -> 222.5
C10: Other Local Revenue | D10: =D11-D7-D8-D9 -> 446.8 | E10: =((1+(F10-D10)/D10)^(1/5))-1 -> 0.02873869276 | F10: =F11-F7-F8-F9 -> 514.8
C11: Total | D11: ='Rev Data'!D25-'Rev Data'!D15-'Rev Data'!D16-'Rev Data'!D17 -> 3461.6 | E11: =((1+(F11-D11)/D11)^(1/5))-1 -> 0.03870451059 | F11: ='Rev Data'!I25-'Rev Data'!I15-'Rev Data'!I16-'Rev Data'!I17 -> 4185.4
C13: State Aid to County Govt. and MNCPPC | D13: ='Rev Data'!D17 -> 95.4 | E13: =((1+(F13-D13)/D13)^(1/5))-1 -> -0.03387474682 | F13: ='Rev Data'!I17 -> 80.3 | H13: • Reduction in Mass Transit Aid to County • No change in State aid to MCPS • No change in State aid to Montgomery College
C14: State Aid to MCPS | D14: ='Rev Data'!D15 -> 605 | E14: 0 | F14: ='Rev Data'!I15 -> 605
C15: State Aid to College | D15: ='Rev Data'!D16 -> 31.7 | E15: 0 | F15: ='Rev Data'!I16 -> 31.7
C17: TOTAL REVENUE | D17: =D7+D8+D9+D10+D13+D14+D15 -> 4193.7 | E17: =((1+(F17-D17)/D17)^(1/5))-1 -> 0.03172101519 | F17: =F7+F8+F9+F10+F13+F14+F15 -> 4902.4
C39: UPDATE REQUIREMENTS
C40: All assumptions

Sheet Rev Var
C3: 1. REVENUE ASSUMPTIONS - Local Sources
E5: Approved Fiscal Plan | K5: Variable | O5: Click Boxes Below for Highest & Lowest 5-Year Average (since FY88)
D6: FY14 Amount ($ millions) | E6: Avg. Annual Growth Rate | F6: FY19 Amount ($ millions) | K6: Avg. Annual Growth Rate | M6: FY19 Amount ($ millions)
C7: Property Tax | D7: ='Rev Data'!D6 -> 1504.9 | E7: ='Rev Data'!K6 -> 0.03095566385 | F7: ='Rev Data'!I6 -> 1752.7 | K7: =W7/100000 -> 0.03096 | M7: =D7*((1+K7)^5) -> 1752.736859 | O7: =IF($AF$7=TRUE,AG7," ") ->  | W7: 3096 | X7: 3096 | AE7: FALSE | AF7: FALSE | AG7: High: 6.7% (FY04-09) Low: 1.8% (FY94-99)
C8: Income Tax | D8: ='Rev Data'!D7 -> 1299.2 | E8: ='Rev Data'!K7 -> 0.0546764128 | F8: ='Rev Data'!I7 -> 1695.4 | K8: =(W8/100000)-0.025 -> 0.05468 | M8: =D8*((1+K8)^5) -> 1695.428832 | O8: =IF($AF$8=TRUE,AG8," ") ->  | W8: 7968 | X8: 7968 | AE8: FALSE | AF8: FALSE | AG8: High: 8.6% (FY01-06) Low: -0.2% (FY06-11)
C9: Energy Tax | D9: ='Rev Data'!D10 -> 210.7 | E9: ='Rev Data'!K10 -> 0.01095795957 | F9: ='Rev Data'!I10 -> 222.5 | K9: =(W9/100000)-0.1 -> 0.01096 | M9: =D9*((1+K9)^5) -> 222.5022454 | O9: =IF($AF$9=TRUE,AG9," ") ->  | W9: 11096 | X9: 11096 | AE9: FALSE | AF9: FALSE | AG9: High: 39.7% (FY00-05) Low: -17.2% (FY93-98)
C10: Other Local Revenue | D10: =D11-D7-D8-D9 -> 446.8 | E10: =((1+(F10-D10)/D10)^(1/5))-1 -> 0.02873869276 | F10: ='Rev Data'!I8+'Rev Data'!I9+'Rev Data'!I11+'Rev Data'!I12+'Rev Data'!I13+'Rev Data'!I18+'Rev Data'!I22+'Rev Data'!I24 -> 514.8 | K10: =W10/100000 -> 0.02874 | M10: =D10*((1+K10)^5) -> 514.8032708 | O10: =IF(AF10=TRUE,AG10," ") ->  | W10: 2874 | X10: 2874 | AE10: FALSE | AF10: FALSE | AG10: High: 8.6% (FY01-06) Low: -0.1% (FY06-11)
C11: Total | D11: ='Rev Data'!D25-'Rev Data'!D15-'Rev Data'!D16-'Rev Data'!D17 -> 3461.6 | E11: =((1+(F11-D11)/D11)^(1/5))-1 -> 0.03870451059 | F11: =F7+F8+F9+F10 -> 4185.4 | K11: =((1+(M11-D11)/D11)^(1/5))-1 -> 0.03870804495 | M11: =SUM(M7:M10) -> 4185.471208
L12: Revenue More / Less than Approved Fiscal Plan: | M12: =M11-F11 -> 0.07120784136
F15: =IF(Dashboard!$L$57>1.5,"Surplus "," ") ->  | H15: =Dashboard!L40 -> Balanced | J15: =IF(Dashboard!$L$57<-1.5," Deficit"," ") -> 
C29: UPDATE REQUIREMENTS
C30: Cells X7 - X10 (approved fiscal plan average annual growth rates to four digits, no decimal, correct to allow negatives)
C31: Highs & Lows

Sheet Rev Var State
C3: 1. REVENUE ASSUMPTIONS - State Aid
E5: Approved Fiscal Plan | K5: Variable | O5: Click Boxes Below for FY09 - 14 Avg. Annual Rate of Growth
D6: FY14 Amount ($ millions) | E6: Avg. Annual Growth Rate | F6: FY19 Amount ($ millions) | K6: Avg. Annual Growth Rate | M6: FY19 Amount ($ millions)
C7: State Aid to County Govt. and MNCPPC | D7: ='Rev Data'!D17 -> 95.4 | E7: =((1+(F7-D7)/D7)^(1/5))-1 -> -0.03387474682 | F7: ='Rev Data'!I17 -> 80.3 | K7: =(W7/100000)-0.1 -> -0.03387 | M7: =D7*((1+K7)^5) -> 80.30197269 | O7: =IF(AF7=TRUE,AG7," ") ->  | W7: 6613 | X7: 6613 | AE7: FALSE | AF7: FALSE | AG7: - 12.9%
C8: State Aid to MCPS | D8: ='Rev Data'!D15 -> 605 | E8: 0 | F8: ='Rev Data'!I15 -> 605 | K8: =(W8/1000)-0.05 -> 0 | M8: =D8*((1+K8)^5) -> 605 | O8: =IF(AF8=TRUE,AG8," ") ->  | W8: 50 | X8: 50 | AE8: FALSE | AF8: FALSE | AG8: + 7.3%
C9: State Aid to College | D9: ='Rev Data'!D16 -> 31.7 | E9: 0 | F9: ='Rev Data'!I16 -> 31.7 | K9: =(W9/1000)-0.05 -> 0 | M9: =D9*((1+K9)^5) -> 31.7 | O9: =IF(AF9=TRUE,AG9," ") ->  | W9: 50 | X9: 50 | AE9: FALSE | AF9: FALSE | AG9: + 0.9%
L11: Revenue More / Less than Approved Fiscal Plan: | M11: =M7-F7 -> 0.001972692325
F16: =IF(Dashboard!$L$57>1.5,"Surplus "," ") ->  | H16: =Dashboard!L40 -> Balanced | J16: =IF(Dashboard!$L$57<-1.5," Deficit"," ") -> 
C30: UPDATE REQUIREMENTS
C31: Cells E8 - E9 (approved fiscal plan average annual growth rates to four digits, no decimal, correct to allow negatives)
C32: Cell X7 (approved fiscal plan average annual growth rate to four digits, no decimal)
C33: FY09-14

Sheet NonOp Assum
C4: 2. NON-OPERATING EXPENSES ASSUMPTIONS
E6: Approved Fiscal Plan
D7: FY14 Amount ($ millions) | E7: Avg. Annual Growth Rate | F7: FY19 Amount ($ millions)
C8: Debt Service | D8: ='NonOp Data'!D5 -> 313.3 | E8: ='NonOp Data'!K5 -> 0.04838851277 | F8: ='NonOp Data'!I5 -> 396.8 | H8: Major Fiscal Plan Assumptions
C9: OPEB Pre-Funding | D9: ='NonOp Data'!D6 -> 138 | E9: ='NonOp Data'!K6 -> 0.02847628576 | F9: ='NonOp Data'!I6 -> 158.8 | H9: • Debt service consistent with current borrowing policy • Full funding of OPEB requirement beginning in FY15 • PAYGO at 10% of borrowing costs
C10: PAYGO / CIP Current Revenue | D10: ='NonOp Data'!D7 -> 83.7 | E10: ='NonOp Data'!K7 -> 0.07381258476 | F10: ='NonOp Data'!I7 -> 119.5
C11: Stabilization Fund / Set Aside | D11: ='NonOp Data'!D8 -> 22 | E11: ='NonOp Data'!K8 -> 0.1554072923 | F11: ='NonOp Data'!I8 -> 45.3
C12: Change in Reserves | D12: ='NonOp Data'!D9 -> -106.8 | E12: -- | F12: ='NonOp Data'!I9 -> 8.2
C13: Total | D13: =SUM(D8:D12) -> 450.2 | E13: ='NonOp Data'!K10 -> 0.1010745771 | F13: =SUM(F8:F12) -> 728.6
C34: UPDATE REQUIREMENTS
C35: All assumptions

Sheet NonOp Var
C4: 2. NON-OPERATING EXPENSES ASSUMPTIONS
E6: Approved Fiscal Plan | K6: Variable
D7: FY14 Amount ($ millions) | E7: Avg. Annual Growth Rate | G7: FY19 Amount ($ millions) | K7: Avg. Annual Growth Rate | L7: FY19 Amount ($ millions)
C8: Debt Service | D8: ='NonOp Data'!D5 -> 313.3 | E8: ='NonOp Data'!K5 -> 0.04838851277 | F8: ='NonOp Data'!I5 -> 396.8 | K8: =V8/100000 -> 0.04839 | L8: =D8*((1+K8)^5) -> 396.8028145 | V8: 4839 | W8: 4839
C9: OPEB Pre-Funding | D9: ='NonOp Data'!D6 -> 138 | E9: ='NonOp Data'!K6 -> 0.02847628576 | F9: ='NonOp Data'!I6 -> 158.8 | K9: =(V9/100000) -> 0.02848 | L9: =D9*((1+K9)^5) -> 158.8028675 | V9: 2848 | W9: 2848
C10: PAYGO / CIP Current Revenue | D10: ='NonOp Data'!D7 -> 83.7 | E10: ='NonOp Data'!K7 -> 0.07381258476 | F10: ='NonOp Data'!I7 -> 119.5 | K10: =V10/100000 -> 0.07381 | L10: =D10*((1+K10)^5) -> 119.4985618 | V10: 7381 | W10: 7381
C11: Stabilization Fund / Set Aside | D11: ='NonOp Data'!D8 -> 22 | E11: ='NonOp Data'!K8 -> 0.1554072923 | F11: ='NonOp Data'!I8 -> 45.3 | K11: =(V11/100000) -> 0.15541 | L11: =D11*((1+K11)^5) -> 45.30053081 | V11: 15541 | W11: 15541
C12: Change in Reserves | D12: ='NonOp Data'!D9 -> -106.8 | E12: -- | F12: ='NonOp Data'!I9 -> 8.2 | K12: -- | L12: =F12 -> 8.2
C13: Total | D13: =SUM(D8:D12) -> 450.2 | E13: ='NonOp Data'!K10 -> 0.1010745771 | F13: ='NonOp Data'!I10 -> 728.6 | K13: =((1+(L13-D13)/D13)^(1/5))-1 -> 0.1010760202 | L13: =SUM(L8:L12) -> 728.6047745
K14: Spending More / Less than Approved Fiscal Plan: | L14: =L13-F13 -> 0.004774541136
F17: =IF(Dashboard!$L$57>1.5,"Surplus "," ") ->  | H17: =Dashboard!L40 -> Balanced | J17: =IF(Dashboard!$L$57<-1.5," Deficit"," ") -> 
C37: UPDATE REQUIREMENTS
C38: Cells W8 - W11 (approved fiscal plan average annual growth rates to four digits, no decimal, correct to allow negatives)

Sheet Agency Assum
C3: 3. LOCAL RESOURCES AVAILABLE FOR AGENCY USE
C5: Change in Available Resources from Fiscal Plan | H5: ='Rev Var'!$M$12+'Rev Var State'!$M$11-'NonOp Var'!$L$14 -> 0.06840599254 | I5: million
E7: Fiscal Plan at MOE
D8: FY14 Amount ($ millions) | E8: Avg. Annual Growth Rate | F8: FY19 Amount ($ millions)
B9: Available County Resoures | D9: ='Cty Res'!C7 -> 3026.4 | E9: =((1+((F9-D9)/D9))^(1/5))-1 -> 0.02695067572 | F9: ='Cty Res'!E7 -> 3456.8 | H9: Assumptions (not in Fiscal Plan)
B10: MCPS | D10: ='Cty Res'!C8 -> 1479.3 | E10: 0.0133 | F10: =D10*(1+E10)^5 -> 1580.325218 | H10: • MCPS funding at MOE level (increases proportional to rate of enrollment growth) • MCPS funding includes pension transfer from State • Montgomery College funding at MOE level (minimum fixed dollar amount)
B11: Montgomery College | D11: ='Cty Res'!C9 -> 196.8 | E11: 0 | F11: =D11*(1+E11)^5 -> 196.8
B12: County Gov't / MNCPPC | D12: ='Cty Res'!C10+'Cty Res'!C11 -> 1350.3 | E12: =((1+(F12-D12)/D12)^(1/5))-1 -> 0.04462156436 | F12: =F9-F10-F11 -> 1679.674782
B30: UPDATE REQUIREMENTS
B31: All assumptions

Sheet Agency Var
C3: 3. LOCAL RESOURCES AVAILABLE FOR AGENCY USE
C5: Change in Available Resources from Fiscal Plan | L5: ='Rev Var'!$M$12+'Rev Var State'!$M$11-'NonOp Var'!$L$14 -> 0.06840599254 | M5: million
E7: Fiscal Plan at MOE | K7: Variable
D8: FY14 Amount ($ millions) | E8: Avg. Annual Growth Rate | F8: FY19 Amount ($ millions) | K8: Avg. Annual Growth Rate | N8: FY19 Amount ($ millions) | Q8: Overall Annual Avg. Annual Growth Rate (incl. State Aid)
B9: Available County Resoures | D9: ='Cty Res'!C7 -> 3026.4 | E9: =((1+((F9-D9)/D9))^(1/5))-1 -> 0.02695067572 | F9: ='Cty Res'!E7 -> 3456.8 | K9: =((1+((N9-D9)/D9))^(1/5))-1 -> 0.02695474012 | N9: =N10+N11+N12 -> 3456.868406 | AH9: FY14 | AI9: FY19
B10: MCPS | D10: ='Cty Res'!C8 -> 1479.3 | E10: 0.0133 | F10: =D10*(1+E10)^5 -> 1580.325218 | K10: =AA10/10000 -> 0.0133 | N10: =D10*(1+K10)^5 -> 1580.325218 | Q10: =AJ10 -> 0.009511265582 | AA10: 133 | AB10: 133 | AH10: ='Cty Res'!C8+'Rev Assum'!D14 -> 2084.3 | AI10: =N10+'Rev Var State'!M8 -> 2185.325218 | AJ10: =((1+(AI10-AH10)/AH10)^(1/5))-1 -> 0.009511265582
B11: Montgomery College | D11: ='Cty Res'!C9 -> 196.8 | E11: 0 | F11: =D11*(1+E11)^5 -> 196.8 | K11: =AA11/1000 -> 0 | N11: =D11*(1+K11)^5 -> 196.8 | Q11: =AJ11 -> 0 | AA11: 0 | AB11: 0 | AH11: ='Cty Res'!C9+'Rev Assum'!D15 -> 228.5 | AI11: =N11+'Rev Var State'!M9 -> 228.5 | AJ11: =((1+(AI11-AH11)/AH11)^(1/5))-1 -> 0
B12: County Gov't / MNCPPC | D12: ='Cty Res'!C10+'Cty Res'!C11 -> 1350.3 | E12: =((1+(F12-D12)/D12)^(1/5))-1 -> 0.04462156436 | F12: =F9-F10-F11 -> 1679.674782 | K12: =Z12/100000 -> 0.04463007282 | N12: =D12*(1+K12)^5 -> 1679.743188 | Q12: =AJ12 -> 0.04013360051 | Z12: =AA12-5000 -> 4463.007282 | AA12: 9463.007282 | AB12: =(AC12*100000)+5000 -> 9463.007282 | AC12: =((1+(AD12-D12)/D12)^(1/5))-1 -> 0.04463007282 | AD12: =F9+L5-N10-N11 -> 1679.743188 | AF12: =(N12-D12)*(1314/1418.4) -> 305.1948312 | AH12: ='Cty Res'!C10+'Cty Res'!C11+'Rev Assum'!D13 -> 1445.7 | AI12: =N12+'Rev Var State'!M7 -> 1760.04516 | AJ12: =((1+(AI12-AH12)/AH12)^(1/5))-1 -> 0.04013360051
M13: Spending More / Less than Approved Fiscal Plan: | N13: =N9-F9 -> 0.06840599254 | AA13: =AA14*100000+5000 -> 8963
AA14: 0.03963
F16: =IF(Dashboard!$L$57>1.5,"Surplus "," ") ->  | H16: =Dashboard!L40 -> Balanced | J16: =IF(Dashboard!$L$57<-1.5," Deficit"," ") -> 
B34: UPDATE REQUIREMENTS
B35: Projected annual MCPS enrollment growth rate (cell E10)
A55: 0.04032909923

Sheet MCG Assum
B3: 4. COUNTY GOVERNMENT BUDGET
B5: Employee Pay | K5: Workforce Size
B6: FY14 Average Salary | E6: 69020 | K6: FY14 FTEs (Tax Supported) | N6: =ROUND((5222.64+2503.36),-1) -> 7730
B11: Employee Benefits | K11: Operating Expenses
B12: FY14 Average Benefit Cost | E12: 32320 | K12: FY14 Operating Expenses (Tax Supported $ millions) | N12: ='Per v Op'!G7/1000000 -> 492.013295
C31: UPDATE REQUIREMENTS
C32: benefit load assumption in cells E6 and E11

Sheet MCG Var
B3: 4. COUNTY GOVERNMENT BUDGET
B5: Employee Pay | K5: Workforce Size | AA5: ='Agency Var'!K12 -> 0.04463007282 | AB5: 0.04463007282 | AC5: =AA5*10000 -> 446.3007282
B6: FY14 Average Salary | E6: 69020 | K6: FY14 FTEs (Tax Supported) | N6: =ROUND((5222.64+2503.36),-1) -> 7730
B7: Avg. Annual Growth Rate | E7: =AA7 -> 0.08 | K7: Avg. Annual Growth Rate | N7: =AE7 -> 0 | AA7: =((AB7)/10000)-0.03 -> 0.08 | AB7: 1100 | AC7: =$AC$5+300 -> 746.3007282 | AE7: =((AF7)/10000)-0.03 -> 0 | AF7: 300 | AG7: 300
B8: Average Annual Change in Salary | E8: =E7*E6 -> 5521.6 | K8: Average Annual Change in FTEs | N8: =N7*N6 -> 0
B10: Employee Benefits | K10: Operating Expenses
B11: FY14 Average Benefit Cost | E11: 32320 | K11: FY14 Operating Expenses (Tax Supported $ millions) | N11: ='Per v Op'!G7/1000000 -> 492.013295
B12: Avg. Annual Growth Rate | E12: =AA12 -> 0.04463007282 | K12: Avg. Annual Growth Rate | N12: =AE12 -> 0.04463007282 | AA12: =((AB12)/10000)-0.03 -> 0.04463007282 | AB12: 746.3007282 | AC12: =$AC$5+300 -> 746.3007282 | AE12: =((AF12)/10000)-0.03 -> 0.04463007282 | AF12: 746.3007282 | AG12: =$AC$5+300 -> 746.3007282
B13: Average Annual Change in Benefit Cost | E13: =E12*E11 -> 1442.443954 | K13: Average Annual Change (Tax Supported $ millions) | N13: =N12*N11 -> 21.95858919
K16: Overall Average Annual Growth Rate: | L16: =M40 -> 0.05956855333
C30: UPDATE REQUIREMENTS
C31: benefit load assumption in cells E6 and E11
C32: cell N6
E34: =(L34*'Per v Op'!$H$6*0.65*(1+E7)^5)-(L34*'Per v Op'!$H$6*0.65) -> 237.4346739 | L34: ='Cty Res'!C11 -> 1245.6 | N34: =((L34*'Per v Op'!H6*0.65*(1+E7))+(L34*'Per v Op'!H6*0.35*(1+E12)))*(((1+N7)^5)-1) -> 0
E36: =(L34*'Per v Op'!$H$6*0.35*(1+E12)^5)-(L34*'Per v Op'!$H$6*0.35) -> 66.46187009 | N36: =(L34*'Per v Op'!$H$7*(1+N12)^5)-(L34*'Per v Op'!$H$7) -> 114.0076573
L40: =E34+E36+N34+N36 -> 417.9042013 | M40: =((1+L40/L34)^(1/5))-1 -> 0.05956855333
L41: =(L34*(1+(AB5))^5)-L34 -> 303.8987147 | M41: =((1+L41/L34)^(1/5))-1 -> 0.04463007282
L44: =(L41-L40)*-1 -> 114.0054866

Sheet MCG Compensation
B3: COUNTY GOVERNMENT PAY ADJUSTEMENTS
B4: Average Annual Adjustments
C6: MCGEO | D6: FOP | E6: IAFF | F6: Non-Represented
B7: General Wage Adjustment (COLA) | C7: =N7 -> 0.0325 | D7: 0.021 | E7: 0.0275 | F7: 0.0325 | N7: =S7/10000 -> 0.0325 | O7: 0.021 | P7: 0.0275 | Q7: 0.0325 | S7: 325 | T7: 210 | U7: 275 | V7: 325 | X7: 325 | Y7: 210 | Z7: 275 | AA7: 325
B8: Service Increment (Step Increase) | C8: 0.035 | D8: =O8 -> 0.035 | E8: 0.035 | F8: 0.035 | N8: 0.035 | O8: 0.035 | P8: 0.035 | Q8: 0.035 | S8: 350 | T8: 350 | U8: 350 | V8: 350 | X8: 350 | Y8: 350 | Z8: 350 | AA8: 350
B9: Longevity Increase | C9: =IF(S9=1,"No","Yes (3.0%)") -> Yes (3.0%) | D9: =IF(T9=1,"No","Yes (3.5%)") -> Yes (3.5%) | E9: =IF(U9=1,"No","Yes (3.5%)") -> Yes (3.5%) | F9: =IF(V9=1,"No","Yes (2.0%)") -> Yes (2.0%) | S9: 0 | T9: 0 | U9: 0 | V9: 0 | X9: 0 | Y9: 0 | Z9: 0 | AA9: 0
E11: Annual Change in County Government Salary Costs: | F11: =C59 -> 0.05628994009 | N11: =(F11*10000)+300 -> 862.8994009
C14: (excludes additional FY14 and FY15 increments negotiated with FOP and IAFF)
B34: UPDATE REQUIREMENTS | K34: =(K9*5)*((#REF!*(1+#REF!)^5)+(#REF!*(1+#REF!)^5))/1000000 -> 
B35: cells: S7 - AA9
B36: C51 - F54 | K36: =((1+K12)^5*#REF!)-#REF! -> 
I38: =#REF!+#REF!+K34+K36 -> 
I39: ='Agency Var'!AF12 -> 305.1948312
I44: =(I39-I38)*-1 -> 
B47: =SUM(C47:F47) -> 8012 | C47: 4196 | D47: 970 | E47: 966 | F47: 1880
B48: =SUM(C48:F48) -> 1 | C48: =C47/B47 -> 0.5237144284 | D48: =D47/B47 -> 0.1210683974 | E48: =E47/B47 -> 0.1205691463 | F48: =F47/B47 -> 0.234648028
C50: MCGEO | D50: FOP | E50: IAFF | F50: Non-Represented
B51: Percent of Workforce | C51: =C48 -> 0.5237144284 | D51: =D48 -> 0.1210683974 | E51: =E48 -> 0.1205691463 | F51: =F48 -> 0.234648028
B52: Percent of Eligible for Increment | C52: =3221/C47 -> 0.7676358437 | D52: =583/D47 -> 0.6010309278 | E52: =631/E47 -> 0.6532091097 | F52: =1237/F47 -> 0.6579787234
B53: Percent of Eligible for Longevity | C53: =67/C47 -> 0.01596758818 | D53: =107/D47 -> 0.1103092784 | E53: =61/E47 -> 0.06314699793 | F53: =9/F47 -> 0.004787234043
B54: Longevity Increase | C54: 0.03 | D54: 0.035 | E54: 0.035 | F54: 0.02
B55: General Wage Adjustment (COLA) | C55: =C7*C51 -> 0.01702071892 | D55: =D7*D51 -> 0.002542436345 | E55: =E7*E51 -> 0.003315651523 | F55: =F7*F51 -> 0.007626060909
B56: Increment (Step Increase) | C56: =C51*C52*C8 -> 0.01407076885 | D56: =D51*D52*D8 -> 0.002546804793 | E56: =E51*E52*E8 -> 0.002756490265 | F56: =F51*F52*F8 -> 0.005403769346
B57: Longevity Increase | C57: =IF(S9=0,C51*C54*C53,0) -> 0.0002508736895 | D57: =IF(T9=0,D51*D54*D53,0) -> 0.0004674238642 | E57: =IF(U9=0,E51*E54*E53,0) -> 0.0002664752871 | F57: =IF(V9=0,F51*F54*F53,0) -> 2.246630055e-05
C59: =SUM(C55:F57) -> 0.05628994009 | Y59: 1

Sheet Bal Sheet
B2: BALANCE SHEET
B3: (summary of assumptions inputted in model)
B5: LOCAL REVENUE | C5: Change from Fiscal Plan ($ million) | E5: NON-OPERATING EXPENSES | G5: Change from Fiscal Plan ($ million)
B6: Property Tax | C6: ='Rev Var'!M7-'Rev Var'!F7 -> 0.03685914896 | E6: Debt Service | G6: ='NonOp Var'!L8-'NonOp Var'!F8 -> 0.002814486522
B7: Income Tax | C7: ='Rev Var'!M8-'Rev Var'!F8 -> 0.02883246373 | E7: OPEB Pre-Funding | G7: ='NonOp Var'!L9-'NonOp Var'!F9 -> 0.002867474146
B8: Energy Tax | C8: ='Rev Var'!M9-'Rev Var'!F9 -> 0.002245380157 | E8: PAYGO / CIP Current Revenue | G8: ='NonOp Var'!L10-'NonOp Var'!F10+0.0015 -> 6.177173392e-05
B9: Other Local Revenue | C9: ='Rev Var'!M10-'Rev Var'!F10 -> 0.003270848518 | E9: Stabilization Fund / Set Aside | G9: ='NonOp Var'!L11-'NonOp Var'!F11 -> 0.0005308087344
B12: STATE AID | C12: Change from Fiscal Plan ($ million) | E12: AGENCY FUNDING | F12: Avg. Annual Growth Rate | G12: Change from Fiscal Plan ($ million)
B13: MCPS | C13: ='Rev Var State'!M8-'Rev Var State'!F8 -> 0 | E13: MCPS | F13: ='Agency Var'!K10 -> 0.0133 | G13: ='Agency Var'!N13 -> 0.06840599254
B14: College | C14: ='Rev Var State'!M9-'Rev Var State'!F9 -> 0 | E14: College | F14: ='Agency Var'!K11 -> 0
B15: County Govt. / MNCPPC | C15: ='Rev Var State'!M7-'Rev Var State'!F7 -> 0.001972692325 | E15: County Govt. / MNCPPC | F15: ='Agency Var'!K12 -> 0.04463007282
C19: =IF(Dashboard!$L$57>1.5,"Surplus"," ") ->  | D19: =Dashboard!L40 -> Balanced | E19: =IF(Dashboard!$L$57<-1.5,"Deficit"," ") -> 

Sheet Dash Data
C6: Revenue | D6: =I6 -> 0.03172409537 | E6: =0.065-D6 -> 0.03327590463 | H6: ='Rev Var'!D11+'Rev Var State'!D7+'Rev Var State'!D8+'Rev Var State'!D9 -> 4193.7 | I6: =((1+(J6-H6)/H6)^(1/5))-1 -> 0.03172409537 | J6: ='Rev Var'!M11+'Rev Var State'!M7+'Rev Var State'!F8+'Rev Var State'!F9 -> 4902.473181
C8: Non Op | D8: ='NonOp Var'!K13 -> 0.1010760202 | E8: =0.12-D8 -> 0.01892397984
C11: County Govt / MNCPPC | D11: ='Agency Var'!K12 -> 0.04463007282 | E11: =6%-D11 -> 0.01536992718
C12: College | D12: ='Agency Var'!K11 -> 0 | E12: =6%-D12 -> 0.06
C13: MCPS | D13: ='Agency Var'!K10 -> 0.0133 | E13: =6%-D13 -> 0.0467
C16: Operating Expenses | D16: =' MCG Var'!N12 -> 0.04463007282 | E16: =6%-D16 -> 0.01536992718
C17: FTEs | D17: =' MCG Var'!N7 -> 0 | E17: =6%-D17 -> 0.06
C18: Salaries / Benefits | D18: =(' MCG Var'!E7*0.65)+(' MCG Var'!E12*0.35) -> 0.06762052549 | E18: =6%-D18 -> -0.007620525488

Sheet Rev Data
A2: REVENUES
A4: Updated | C4: FY13 | D4: FY14 | E4: FY15 | F4: FY16 | G4: FY17 | H4: FY18 | I4: FY19 | K4: Avg. Annual Growth Rate FY14-FY19
B5: TAX REVENUE | C5: =SUM(C6:C13) -> 3215.3 | D5: 3223 | E5: 3256 | F5: 3440.5 | G5: 3595.9 | H5: 3767.9 | I5: 3927.1 | K5: =((1+(I5-D5)/D5)^(1/5))-1 -> 0.04030894073
A6: ü | B6: Property Tax | C6: 1461.4 | D6: 1504.9 | E6: 1544.3 | F6: 1587.8 | G6: 1633.6 | H6: 1688.6 | I6: 1752.7 | K6: =((1+(I6-D6)/D6)^(1/5))-1 -> 0.03095566385
A7: ü | B7: Income Tax | C7: 1331.4 | D7: 1299.2 | E7: 1285.7 | F7: 1415.4 | G7: 1511.7 | H7: 1613.6 | I7: 1695.4 | K7: =((1+(I7-D7)/D7)^(1/5))-1 -> 0.0546764128
A8: ü | B8: Transfer Tax | C8: 82 | D8: 85.7 | E8: 88 | F8: 92.9 | G8: 99.7 | H8: 108.2 | I8: 115.7 | K8: 0.06186793672
A9: ü | B9: Recordation Tax | C9: 54.5 | D9: 56.6 | E9: 57.9 | F9: 60.8 | G9: 64.7 | H9: 69.7 | I9: 74.1 | K9: 0.05535933351
A10: ü | B10: Fuel / Energy Tax | C10: 219.1 | D10: 210.7 | E10: 214.2 | F10: 217.6 | G10: 220 | H10: 221.3 | I10: 222.5 | K10: 0.01095795957
A11: ü | B11: Telephone Tax | C11: 45.4 | D11: 45.1 | E11: 44.6 | F11: 44.2 | G11: 43.9 | H11: 43.7 | I11: 43.5 | K11: -0.00719822943
A12: ü | B12: Hotel / Motel Tax | C12: 18.6 | D12: 17.8 | E12: 18.2 | F12: 18.5 | G12: 18.9 | H12: 19.3 | I12: 19.6 | K12: 0.0194530131
A13: ü | B13: Admission Tax | C13: 2.9 | D13: 3 | E13: 3.1 | F13: 3.3 | G13: 3.4 | H13: 3.5 | I13: 3.6 | K13: 0.03713728934
A14: ü | B14: INTERGOVERNMENTAL AID | C14: 708.3 | D14: 732.1 | E14: 733.4 | F14: 717 | G14: 717 | H14: 717 | I14: 717 | K14: -0.004159580092
A15: ü | B15: State Aid to MCPS | C15: 590.5 | D15: 605 | E15: 605 | F15: 605 | G15: 605 | H15: 605 | I15: 605 | K15: 0
A16: ü | B16: State Aid to Mont. College | C16: 30.3 | D16: 31.7 | E16: 31.7 | F16: 31.7 | G16: 31.7 | H16: 31.7 | I16: 31.7 | K16: 0
B17: Other State Aid | C17: =C14-C15-C16 -> 87.5 | D17: =D14-D15-D16 -> 95.4 | E17: 96.7 | F17: 80.3 | G17: 80.3 | H17: 80.3 | I17: 80.3 | K17: -0.03387474682
B18: FEES & FINES | C18: =SUM(C19:C21) -> 173.6 | D18: 189.9 | E18: 195.3 | F18: 202.1 | G18: 204.4 | H18: 207.1 | I18: 209.9 | K18: 0.02022860201
A19: ü | B19: Mont. College Tuition | C19: 85.6 | D19: 87.3 | E19: 90.8 | F19: 95.6 | G19: 95.6 | H19: 95.6 | I19: 95.6 | K19: 0.01833044889
A20: ü | B20: Charges for Services | C20: 54.9 | D20: 69.3 | E20: 70.6 | F20: 72.1 | G20: 73.9 | H20: 76 | I20: 78.3 | K20: 0.02472116287
A21: ü | B21: Other Fees & Fines | C21: =11.4+21.7 -> 33.1 | D21: =11.4+21.9 -> 33.3 | E21: =11.6+22.3 -> 33.9 | F21: =11.8+22.6 -> 34.4 | G21: =11.9+23 -> 34.9 | H21: =12.1+23.4 -> 35.5 | I21: =12.3+23.7 -> 36 | K21: 0.0157145026
A22: ü | B22: MISCELLANEOUS INCOME | C22: 11.5 | D22: 10.3 | E22: 10.6 | F22: 11.2 | G22: 12.1 | H22: 12.8 | I22: 13.6 | K22: 0.05715906152
B23: TOTAL REVENUES | C23: =C22+C18+C14+C5 -> 4108.7 | D23: 4155.3 | E23: 4195.3 | F23: 4370.8 | G23: 4529.4 | H23: 4704.8 | I23: 4867.6 | K23: 0.03214924611
A24: ü | B24: INTERFUND TRANSFERS IN | C24: 49.1 | D24: 38.4 | E24: 30.6 | F24: 31.5 | G24: 32.5 | H24: 33.6 | I24: 34.8 | K24: =((1+(I24-D24)/D24)^(1/5))-1 -> -0.01949547127 | L24: Variable Rate | M24: FY19 at Var Rate
B25: AVAILABLE RESOURCES | C25: =+C24+C23 -> 4157.8 | D25: 4193.7 | E25: 4225.9 | F25: 4402.3 | G25: 4561.9 | H25: 4738.4 | I25: =I24+I23 -> 4902.4 | K25: =((1+(I25-D25)/D25)^(1/5))-1 -> 0.03172101519 | L25: ='Rev Var'!K11 -> 0.03870804495 | M25: =D25*(1+L25)^5 -> 5070.664029
D27: =D25-D14 -> 3461.6
B28: Source: Fiscal Plan, Pages 1, 50; Approved Fiscal Plan (following budget approval)
B30: UPDATE REQUIREMENTS
B31: All entries

Sheet NonOp Data
A2: NON-OPERATING USES
A4: Updated | C4: FY13 | D4: FY14 | E4: FY15 | F4: FY16 | G4: FY17 | H4: FY18 | I4: FY19 | K4: Avg. Annual Growth Rate FY14-FY19
A5: ü | B5: Debt Service | C5: 297.6 | D5: 313.3 | E5: 348.6 | F5: 370.7 | G5: 386.4 | H5: 391.4 | I5: 396.8 | K5: =((1+(I5-D5)/D5)^(1/5))-1 -> 0.04838851277
A6: ü | B6: OPEB Pre-Funding | C6: 105.4 | D6: 138 | E6: 182.4 | F6: 177.7 | G6: 172.5 | H6: 166.3 | I6: 158.8 | K6: 0.02847628576
A7: ü | B7: PAYGO / CIP Current Revenue | C7: =29.5+49.8 -> 79.3 | D7: =29.5+54.2 -> 83.7 | E7: =40.5+61.1 -> 101.6 | F7: =40.5+59.6 -> 100.1 | G7: =58.1+50.5 -> 108.6 | H7: =50.5+69 -> 119.5 | I7: =50.5+69 -> 119.5 | K7: 0.07381258476
A8: ü | B8: Stabilization Fund / Set Aside | C8: =C10-C9-C5-C6-C7 -> 33.8 | D8: 22 | E8: 42 | F8: 42.8 | G8: 43.6 | H8: 44.5 | I8: 45.3 | K8: 0.1554072923
A9: ü | B9: Change in Reserves | C9: =-0.8-1.4+1.2+17.8+11.2 -> 28 | D9: =-(8.3+4.7+27+6.6+60.2) -> -106.8 | E9: =-4.8-0.1+1.6 -> -3.3 | F9: 1.3 | G9: 8.9 | H9: 7.5 | I9: 8.2 | L9: Variable Rate | M9: FY19 at Var Rate
A10: ü | B10: Non-Operating Total | C10: 544.1 | D10: 450.2 | E10: 671.3 | F10: 692.6 | G10: 720 | H10: 729.2 | I10: 728.6 | K10: 0.1010745771 | L10: ='NonOp Var'!K13 -> 0.1010760202 | M10: =D10*(1+L10)^5 -> 728.6047745
B13: Source: Fiscal Plan, Page 1; Approved Fiscal Plan (following budget approval)
B20: UPDATE REQUIREMENTS
B21: All entries

Sheet Rev Sum All Years
A3: Fiscal Plan Projections: Revenues ($ millions)
C5: FY13 | D5: FY14 | E5: FY15 | F5: FY16 | G5: FY17 | H5: FY18 | I5: FY19 | J5: Avg. Annual Growth Rate
B6: Total Revenues | C6: ='Rev Data'!C23 -> 4108.7 | D6: ='Rev Data'!D25 -> 4193.7 | E6: ='Rev Data'!E25 -> 4225.9 | F6: ='Rev Data'!F25 -> 4402.3 | G6: ='Rev Data'!G25 -> 4561.9 | H6: ='Rev Data'!H25 -> 4738.4 | I6: ='Rev Data'!I25 -> 4902.4 | J6: =((1+(I6-D6)/D6)^(1/5))-1 -> 0.03172101519
B7: Property Tax | D7: ='Rev Data'!D6 -> 1504.9 | E7: ='Rev Data'!E6 -> 1544.3 | F7: ='Rev Data'!F6 -> 1587.8 | G7: ='Rev Data'!G6 -> 1633.6 | H7: ='Rev Data'!H6 -> 1688.6 | I7: ='Rev Data'!I6 -> 1752.7 | J7: 0.03095566385
B8: Income Tax | D8: ='Rev Data'!D7 -> 1299.2 | E8: ='Rev Data'!E7 -> 1285.7 | F8: ='Rev Data'!F7 -> 1415.4 | G8: ='Rev Data'!G7 -> 1511.7 | H8: ='Rev Data'!H7 -> 1613.6 | I8: ='Rev Data'!I7 -> 1695.4 | J8: 0.0546764128
B9: State Aid to MCPS | D9: ='Rev Data'!D15 -> 605 | E9: ='Rev Data'!E15 -> 605 | F9: ='Rev Data'!F15 -> 605 | G9: ='Rev Data'!G15 -> 605 | H9: ='Rev Data'!H15 -> 605 | I9: ='Rev Data'!I15 -> 605 | J9: 0
B10: Energy Tax | D10: ='Rev Data'!D10 -> 210.7 | E10: ='Rev Data'!E10 -> 214.2 | F10: ='Rev Data'!F10 -> 217.6 | G10: ='Rev Data'!G10 -> 220 | H10: ='Rev Data'!H10 -> 221.3 | I10: ='Rev Data'!I10 -> 222.5 | J10: 0.01095795957
B11: Other Revenues | D11: =D6-D7-D8-D9-D10 -> 573.9 | E11: 576.7 | F11: 576.5 | G11: 591.6 | H11: 609.9 | I11: 626.8 | J11: 0.01779087435
B26: UPDATE REQUIREMENTS
B27: None

Sheet Trends
B2: CE Rec Budget
B3: Page 5-15
C6: FY14 | D6: FY19
B7: Assessable Base | C7: 163305 | D7: 198047 | E7: =((1+(D7-C7)/C7)^(1/5))-1 -> 0.0393307035
B8: Per Capita Personal Income | C8: 76920 | D8: 94340 | E8: =((1+(D8-C8)/C8)^(1/5))-1 -> 0.04167278846
B9: Population | C9: 1007311 | D9: 1055249 | E9: =((1+(D9-C9)/C9)^(1/5))-1 -> 0.009341835854
B18: UPDATE REQUIREMENTS
B19: All FY data

Sheet Per v Op
B2: Schedule B-4
B4: FY14
C5: General Fund | D5: Special Funds | E5: Total Tax Supported | F5: OPEB | G5: Total Tax Supported
B6: Personnel | C6: 562760330 | D6: 256736597 | E6: =D6+C6 -> 819496927 | G6: =SUM(C6:D6) -> 819496927 | H6: =G6/G9 -> 0.6248498207
B7: Operating | C7: =516011992+1749636 -> 517761628 | D7: 118370138 | E7: =D7+C7 -> 636131766 | F7: =E14 -> 144118471 | G7: =C7+D7-F7 -> 492013295 | H7: =G7/G9 -> 0.3751501793
G9: =SUM(G6:G7) -> 1311510222
E13: OPEB
E14: =SUM(E15:E18) -> 144118471
E15: 51319040
E16: 87836000
E17: 2489000
E18: 2474431
B25: UPDATE REQUIREMENTS
B26: cells: C6 - F7
